[Event "RUS-chT Premier 2019"]
[Site "Sochi"]
[Date "2019.05.01"]
[Round "1.30"]
[White "Murzin, Volodar"]
[Black "Toropov, Pavel"]
[Result "1-0"]
[ECO "C00"]
[WhiteElo "2407"]
[BlackElo "2327"]
[Annotator "NA"]
[PlyCount "117"]
[EventDate "2019.04.30"]
[EventType "team-tourn"]
[EventCountry "RUS"]
[SourceTitle "playchess.com"]
[Source "ChessBase"]
[SourceQuality "1"]
[TimeControl "40/5400+30:1800+30"]

1. e4 {[%emt 0:00:00]} e6 {[%emt 0:00:00]} 2. d3 {[%emt 0:00:05]} d5 {[%emt 0:00:00]} 3. Nd2 {[%emt 0:00:06]} Nf6 {[%emt 0:00:00]} 4. Ngf3 {[%emt 0:00:05]} c5 {[%emt 0:00:00]} 5. g3 {[%emt 0:00:20]} Nc6 {[%emt 0:00:00]} 6. Bg2 {[%emt 0:00:04]} Be7 {[%emt 0:00:07]} 7. O-O {[%emt 0:00:07]} b5 {[%emt 0:00:27]} 8. Re1 {[%emt 0:00:10]} O-O {[%emt 0:00:35]} 9. e5 {[%emt 0:01:15]} Nd7 {[%emt 0:00:07]} 10. Nf1 {[%emt 0:00:08]} Qc7 {[%emt 0:00:14]} 11. Bf4 {[%emt 0:00:24]} Bb7 {[%emt 0:00:11]} 12. h4 {[%emt 0:00:37]} Rfc8 {[%emt 0:00:20]} 13. N1h2 {[%emt 0:01:45]} Qd8 {[%emt 0:01:02]} 14. h5 {[%emt 0:02:42]} h6 {[%emt 0:00:13]} 15. Ng4 {[%emt 0:00:24]} a5 {[%emt 0:02:19]} 16. Qd2 {[%emt 0:06:47]} Bf8 {[%emt 0:00:06]} 17. Ngh2 {[%emt 0:06:02]} Be7 {[%emt 0:00:24]} 18. g4 {[%emt 0:01:21]} Ra6 {[%emt 0:00:02]} 19. Re2 {[%emt 0:02:28]} a4 {[%emt 0:00:07]} 20. a3 {[%emt 0:01:10]} b4 {[%emt 0:09:05]} 21. Rae1 {[%emt 0:12:46]} bxa3 {[%emt 0:03:33]} 22. bxa3 {[%emt 0:00:02]} Nd4 {[%emt 0:02:47]} 23. Nxd4 {[%emt 0:05:14]} cxd4 {[%emt 0:00:01]} 24. Qc1 {[%emt 0:03:09]} Qf8 {[%emt 0:19:25]} 25. Qb2 {[%emt 0:05:23]} Ba8 {[%emt 0:23:53]} 26. Qxd4 {[%emt 0:10:24]} Bxa3 {[%emt 0:04:00]} 27. Nf3 {[%emt 0:02:14]} Rb8 {[%emt 0:06:17]} 28. Bc1 {[%emt 0:09:43]} Be7 {[%emt 0:10:36]} 29. Qa1 {[%emt 0:03:22]} a3 {[%emt 0:00:28]} 30. Be3 {[%emt 0:01:15]} Ra4 {[%emt 0:04:16]} 31. Bd4 {[%emt 0:03:02]} Rbb4 {[%emt 0:07:12]} 32. c3 {[%emt 0:00:50]} Rb8 {[%emt 0:01:05]} 33. Qd1 {[%emt 0:02:21]} Bc6 {[%emt 0:00:48]} 34. Ra2 {[%emt 0:00:17]} Qd8 {[%emt 0:03:20]} 35. Nd2 {[%emt 0:01:55]} Nc5 {[%emt 0:01:12]} 36. Bf1 {[%emt 0:06:16]} Qa5 {[%emt 0:01:40]} 37. Qc2 {[%emt 0:01:56]} Rxd4 {[%emt 0:01:51]} 38. cxd4 {[%emt 0:00:18]} Ba4 {[%emt 0:00:01]} 39. Rxa3 {[%emt 0:03:19]} Bxc2 {[%emt 0:01:10]} 40. Rxa5 {[%emt 0:00:00]} Nxd3 {[%emt 0:00:00]} 41. Rea1 {[%emt 0:03:47]} Bb4 {[%emt 0:03:13]} 42. R5a2 {[%emt 0:09:16]} Bxd2 {[%emt 0:02:46]} 43. Bxd3 {[%emt 0:06:09]} Bxd3 {[%emt 0:00:01]} 44. Rxd2 {[%emt 0:00:01]} Bc4 {[%emt 0:00:14]} 45. f3 {[%emt 0:00:42]} Rb7 {[%emt 0:01:56]} 46. Kf2 {[%emt 0:00:30]} Kh7 {[%emt 0:00:09]} 47. Kg3 {[%emt 0:00:48]} g6 {[%emt 0:04:17]} 48. hxg6+ {[%emt 0:00:10]} Kxg6 {[%emt 0:00:02]} 49. Rh1 {[%emt 0:00:31]} Rb3 {[%emt 0:00:41]} 50. Rdh2 {[%emt 0:00:32]} Kg7 {[%emt 0:00:13]} 51. Rxh6 {[%emt 0:00:13]} Rd3 {[%emt 0:02:25]} 52. Rh7+ {[%emt 0:01:07]} Kg8 {[%emt 0:00:01]} 53. Rh8+ {[%emt 0:01:17]} Kg7 {[%emt 0:00:01]} 54. Ra8 {[%emt 0:02:19]} Rxd4 {[%emt 0:00:11]} 55. Rhh8 {[%emt 0:00:16]} f5 {[%emt 0:01:04]} 56. Rag8+ {[%emt 0:01:29]} Kf7 {[%emt 0:00:02]} 57. Rf8+ {[%emt 0:00:26]} Kg7 {[%emt 0:00:15]} 58. gxf5 {[%emt 0:00:42]} exf5 {[%emt 0:00:08]} 59. e6 {[%emt 0:01:04]} 1-0

[Event "RUS-chT Premier 2019"]
[Site "Sochi"]
[Date "2019.05.02"]
[Round "2.2"]
[White "Khanin, Semen"]
[Black "Usmanov, Vasily"]
[Result "1/2-1/2"]
[ECO "B33"]
[WhiteElo "2524"]
[BlackElo "2437"]
[Annotator "ChessBase"]
[PlyCount "209"]
[EventDate "2019.05.01"]
[EventType "team-tourn"]
[EventCountry "RUS"]
[SourceTitle "playchess.com"]
[Source "ChessBase"]
[SourceQuality "1"]
[TimeControl "40/5400+30:1800+30"]

1. e4 {[%emt 0:00:00]} c5 {[%emt 0:00:00]} 2. Nf3 {[%emt 0:00:00]} Nc6 {[%emt 0:00:00]} 3. d4 {[%emt 0:00:00]} cxd4 {[%emt 0:00:00]} 4. Nxd4 {[%emt 0:00:00]} Nf6 {[%emt 0:00:00]} 5. Nc3 {[%emt 0:00:00]} e6 {[%emt 0:00:00]} 6. Ndb5 {[%emt 0:00:01]} Bb4 {[%emt 0:00:06]} 7. a3 {[%emt 0:01:07]} Bxc3+ {[%emt 0:00:07]} 8. Nxc3 {[%emt 0:00:03]} d5 {[%emt 0:00:07]} 9. exd5 {[%emt 0:00:49]} exd5 {[%emt 0:00:06]} 10. Bd3 {[%emt 0:00:56]} O-O {[%emt 0:00:09]} 11. O-O {[%emt 0:00:08]} d4 {[%emt 0:00:05]} 12. Ne2 {[%emt 0:01:35]} Bg4 {[%emt 0:00:15]} 13. Bg5 {[%emt 0:04:51]} h6 {[%emt 0:01:39]} 14. Bh4 {[%emt 0:00:27]} Bxe2 {[%emt 0:00:13]} 15. Bxe2 {[%emt 0:12:53]} Re8 {[%emt 0:00:23]} 16. Bc4 {[%emt 0:01:43]} Ne5 {[%emt 0:12:06]} 17. Bb3 {[%emt 0:00:56]} Qb6 {[%emt 0:00:41]} 18. Re1 {[%emt 0:03:43]} Rad8 {[%emt 0:12:14]} 19. Bg3 {[%emt 0:04:44]} Nc6 {[%emt 0:03:58]} 20. Qd3 {[%emt 0:04:01]} Na5 {[%emt 0:06:44]} 21. Ba4 {[%emt 0:01:04]} Nc6 {[%emt 0:00:36]} 22. b4 {[%emt 0:03:57]} a5 {[%emt 0:08:20]} 23. b5 {[%emt 0:01:19]} Ne7 {[%emt 0:00:45]} 24. Bb3 {[%emt 0:03:47]} Ned5 {[%emt 0:03:58]} 25. Be5 {[%emt 0:09:51]} Nc3 {[%emt 0:15:27]} 26. Qg6 {[%emt 0:11:04]} Re7 {[%emt 0:00:11]} 27. Bxf6 {[%emt 0:18:21]} Qxf6 {[%emt 0:00:06]} 28. Qxf6 {[%emt 0:00:20]} Rxe1+ {[%emt 0:00:03]} 29. Rxe1 {[%emt 0:00:04]} gxf6 {[%emt 0:00:05]} 30. Re7 {[%emt 0:00:49]} a4 {[%emt 0:00:03]} 31. Bxf7+ {[%emt 0:01:08]} Kf8 {[%emt 0:00:03]} 32. Rxb7 {[%emt 0:00:07]} Nxb5 {[%emt 0:00:03]} 33. Bg6 {[%emt 0:03:12]} Nxa3 {[%emt 0:00:05]} 34. Kf1 {[%emt 0:07:50]} Rc8 {[%emt 0:03:47]} 35. Rf7+ {[%emt 0:00:05]} Kg8 {[%emt 0:00:03]} 36. Ra7 {[%emt 0:00:04]} Nxc2 {[%emt 0:06:21]} 37. Rxa4 {[%emt 0:00:04]} Kg7 {[%emt 0:03:15]} 38. Bd3 {[%emt 0:03:58]} Rc7 {[%emt 0:01:01]} 39. h3 {[%emt 0:02:38]} Kf8 {[%emt 0:02:53]} 40. Ke2 {[%emt 0:00:00]} Re7+ {[%emt 0:00:00]} 41. Kd2 {[%emt 0:02:38]} Ne1 {[%emt 0:02:10]} 42. Bf1 {[%emt 0:07:57]} d3 {[%emt 0:00:12]} 43. Rg4 {[%emt 0:03:25]} Kf7 {[%emt 0:00:55]} 44. h4 {[%emt 0:00:10]} h5 {[%emt 0:02:59]} 45. Ra4 {[%emt 0:00:40]} Kg7 {[%emt 0:01:28]} 46. Ra5 {[%emt 0:02:13]} Kh6 {[%emt 0:00:11]} 47. Ra6 {[%emt 0:02:32]} Kg7 {[%emt 0:00:31]} 48. Ra4 {[%emt 0:00:04]} Kh6 {[%emt 0:02:35]} 49. Ra5 {[%emt 0:00:03]} Nxg2 {[%emt 0:01:57]} 50. Bxg2 {[%emt 0:00:21]} Re2+ {[%emt 0:00:04]} 51. Kxd3 {[%emt 0:00:04]} Rxf2 {[%emt 0:00:04]} 52. Be4 {[%emt 0:01:55]} Rf4 {[%emt 0:00:24]} 53. Ra6 {[%emt 0:00:34]} Kg7 {[%emt 0:02:14]} 54. Ra7+ {[%emt 0:00:02]} Kf8 {[%emt 0:00:15]} 55. Bd5 {[%emt 0:02:13]} Rxh4 {[%emt 0:00:40]} 56. Rf7+ {[%emt 0:01:45]} Ke8 {[%emt 0:00:04]} 57. Rxf6 {[%emt 0:00:04]} Ke7 {[%emt 0:00:10]} 58. Rh6 {[%emt 0:00:04]} Ra4 {[%emt 0:00:41]} 59. Bc4 {[%emt 0:00:26]} Ra1 {[%emt 0:00:23]} 60. Rxh5 {[%emt 0:00:24]} Rd1+ {[%emt 0:01:26]} 61. Ke4 {[%emt 0:00:07]} Re1+ {[%emt 0:00:35]} 62. Kd4 {[%emt 0:00:52]} Rd1+ {[%emt 0:01:57]} 63. Bd3 {[%emt 0:00:13]} Kd6 {[%emt 0:00:13]} 64. Rh6+ {[%emt 0:00:03]} Kd7 {[%emt 0:00:07]} 65. Ke4 {[%emt 0:00:11]} Kc7 {[%emt 0:00:34]} 66. Bc4 {[%emt 0:00:15]} Kd7 {[%emt 0:00:24]} 67. Bd5 {[%emt 0:00:05]} Re1+ {[%emt 0:00:26]} 68. Kd4 {[%emt 0:00:01]} Rd1+ {[%emt 0:00:08]} 69. Ke5 {[%emt 0:00:03]} Re1+ {[%emt 0:00:09]} 70. Be4 {[%emt 0:00:02]} Ke7 {[%emt 0:00:12]} 71. Rh7+ {[%emt 0:00:01]} Ke8 {[%emt 0:00:05]} 72. Kd5 {[%emt 0:00:04]} Kf8 {[%emt 0:00:04]} 73. Ra7 {[%emt 0:00:16]} Re2 {[%emt 0:00:51]} 74. Bf5 {[%emt 0:00:20]} Re7 {[%emt 0:00:25]} 75. Ra1 {[%emt 0:00:56]} Kg7 {[%emt 0:01:14]} 76. Be6 {[%emt 0:00:07]} Kf6 {[%emt 0:00:37]} 77. Rf1+ {[%emt 0:00:07]} Kg5 {[%emt 0:00:35]} 78. Ke5 {[%emt 0:00:05]} Ra7 {[%emt 0:00:41]} 79. Rg1+ {[%emt 0:00:03]} Kh4 {[%emt 0:04:19]} 80. Bf5 {[%emt 0:00:27]} Ra2 {[%emt 0:05:51]} 81. Kf6 {[%emt 0:04:46]} Rf2 {[%emt 0:01:07]} 82. Rg8 {[%emt 0:00:49]} Rf3 {[%emt 0:00:35]} 83. Rg2 {[%emt 0:00:15]} Rf4 {[%emt 0:00:42]} 84. Ke5 {[%emt 0:00:09]} Rf3 {[%emt 0:00:50]} 85. Rg4+ {[%emt 0:01:28]} Kh3 {[%emt 0:00:34]} 86. Ke4 {[%emt 0:00:55]} Rg3 {[%emt 0:00:33]} 87. Rg8+ {[%emt 0:00:14]} Kh4 {[%emt 0:01:19]} 88. Rh8+ {[%emt 0:00:53]} Kg5 {[%emt 0:00:02]} 89. Ke5 {[%emt 0:00:04]} Re3+ {[%emt 0:01:09]} 90. Be4 {[%emt 0:00:02]} Rg3 {[%emt 0:00:12]} 91. Rg8+ {[%emt 0:01:23]} Kh4 {[%emt 0:00:06]} 92. Rf8 {[%emt 0:00:02]} Kg5 {[%emt 0:03:37]} 93. Bf3 {[%emt 0:00:05]} Kh4 {[%emt 0:00:25]} 94. Kf4 {[%emt 0:00:05]} Rg4+ {[%emt 0:00:04]} 95. Ke3 {[%emt 0:00:06]} Rg7 {[%emt 0:00:43]} 96. Kf4 {[%emt 0:00:36]} Rg4+ {[%emt 0:00:11]} 97. Kf5 {[%emt 0:00:03]} Rg5+ {[%emt 0:00:10]} 98. Kf6 {[%emt 0:00:02]} Ra5 {[%emt 0:01:46]} 99. Rg8 {[%emt 0:00:03]} Ra3 {[%emt 0:00:14]} 100. Bg4 {[%emt 0:00:46]} Kg3 {[%emt 0:00:42]} 101. Bf5+ {[%emt 0:00:06]} Kf4 {[%emt 0:00:19]} 102. Rg4+ {[%emt 0:00:02]} Kf3 {[%emt 0:00:09]} 103. Rh4 {[%emt 0:00:02]} Ra7 {[%emt 0:00:47]} 104. Rh7 {[%emt 0:00:02]} Rxh7 {[%emt 0:00:05]} 105. Bxh7 {[%emt 0:00:03]} 1/2-1/2

[Event "RUS-chT Premier 2019"]
[Site "Sochi"]
[Date "2019.05.02"]
[Round "2.3"]
[White "Pershin, Denis"]
[Black "Tsydypov, Zhamsaran"]
[Result "0-1"]
[ECO "E84"]
[WhiteElo "2409"]
[BlackElo "2546"]
[Annotator "ChessBase"]
[PlyCount "82"]
[EventDate "2019.05.01"]
[EventType "team-tourn"]
[EventCountry "RUS"]
[SourceTitle "playchess.com"]
[Source "ChessBase"]
[SourceQuality "1"]
[TimeControl "40/5400+30:1800+30"]

1. d4 {[%emt 0:00:00]} Nf6 {[%emt 0:00:15]} 2. c4 {[%emt 0:00:00]} g6 {[%emt 0:00:28]} 3. Nc3 {[%emt 0:00:00]} Bg7 {[%emt 0:01:52]} 4. e4 {[%emt 0:00:00]} d6 {[%emt 0:00:04]} 5. f3 {[%emt 0:00:16]} O-O {[%emt 0:00:21]} 6. Be3 {[%emt 0:00:05]} Nc6 {[%emt 0:00:04]} 7. Nge2 {[%emt 0:00:15]} a6 {[%emt 0:00:07]} 8. Qd2 {[%emt 0:00:48]} Rb8 {[%emt 0:02:07]} 9. h4 {[%emt 0:00:16]} b5 {[%emt 0:04:34]} 10. Nc1 {[%emt 0:14:16]} bxc4 {[%emt 0:04:38]} 11. Bxc4 {[%emt 0:00:15]} e5 {[%emt 0:00:22]} 12. d5 {[%emt 0:13:42]} Na5 {[%emt 0:00:54]} 13. Bd3 {[%emt 0:00:33]} c6 {[%emt 0:01:00]} 14. N1e2 {[%emt 0:12:30]} cxd5 {[%emt 0:01:17]} 15. exd5 {[%emt 0:00:05]} e4 {[%emt 0:07:09]} 16. fxe4 {[%emt 0:01:11]} Ng4 {[%emt 0:00:08]} 17. b3 {[%emt 0:05:00]} f5 {[%emt 0:08:42]} 18. Bg5 {[%emt 0:05:32]} Qb6 {[%emt 0:01:02]} 19. Rf1 {[%emt 0:00:14]} h6 {[%emt 0:06:22]} 20. Bf4 {[%emt 0:04:11]} fxe4 {[%emt 0:03:19]} 21. Bxe4 {[%emt 0:00:06]} Bf5 {[%emt 0:06:15]} 22. Na4 {[%emt 0:03:06]} Qd8 {[%emt 0:01:52]} 23. Bxf5 {[%emt 0:00:21]} Rxf5 {[%emt 0:00:50]} 24. Rc1 {[%emt 0:01:56]} Qxh4+ {[%emt 0:06:22]} 25. g3 {[%emt 0:00:32]} Qd8 {[%emt 0:02:48]} 26. Bxd6 {[%emt 0:07:09]} Rxf1+ {[%emt 0:03:36]} 27. Kxf1 {[%emt 0:00:06]} Qxd6 {[%emt 0:00:05]} 28. Qxa5 {[%emt 0:00:15]} Qf6+ {[%emt 0:02:35]} 29. Nf4 {[%emt 0:04:11]} g5 {[%emt 0:02:04]} 30. Qc7 {[%emt 0:04:45]} Rf8 {[%emt 0:02:09]} 31. Qb6 {[%emt 0:01:22]} gxf4 {[%emt 0:00:52]} 32. Qxf6 {[%emt 0:00:09]} Nxf6 {[%emt 0:03:35]} 33. d6 {[%emt 0:00:26]} fxg3 {[%emt 0:00:58]} 34. Kg2 {[%emt 0:00:21]} Ne4 {[%emt 0:01:20]} 35. d7 {[%emt 0:00:14]} Rf2+ {[%emt 0:00:22]} 36. Kh3 {[%emt 0:00:07]} Bf6 {[%emt 0:00:08]} 37. Nc5 {[%emt 0:01:04]} Rh2+ {[%emt 0:00:30]} 38. Kg4 {[%emt 0:00:06]} Nxc5 {[%emt 0:00:07]} 39. Kxg3 {[%emt 0:00:24]} Rh5 {[%emt 0:00:05]} 40. Rd1 {[%emt 0:00:00]} Bd8 {[%emt 0:00:00]} 41. Re1 {[%emt 0:00:41]} Bc7+ {[%emt 0:00:37]} 0-1

[Event "RUS-chT Premier 2019"]
[Site "Sochi"]
[Date "2019.05.02"]
[Round "2.4"]
[White "Bocharov, Dmitry"]
[Black "Shubin, Kirill"]
[Result "0-1"]
[ECO "E12"]
[WhiteElo "2530"]
[BlackElo "2404"]
[Annotator "ChessBase"]
[PlyCount "92"]
[EventDate "2019.05.01"]
[EventType "team-tourn"]
[EventCountry "RUS"]
[SourceTitle "playchess.com"]
[Source "ChessBase"]
[SourceQuality "1"]
[TimeControl "40/5400+30:1800+30"]

1. d4 {[%emt 0:00:00]} e6 {[%emt 0:00:00]} 2. Nf3 {[%emt 0:00:10]} Nf6 {[%emt 0:00:00]} 3. c4 {[%emt 0:00:25]} b6 {[%emt 0:00:00]} 4. a3 {[%emt 0:01:57]} Bb7 {[%emt 0:01:06]} 5. Nc3 {[%emt 0:00:18]} Ne4 {[%emt 0:00:03]} 6. Nxe4 {[%emt 0:00:58]} Bxe4 {[%emt 0:00:04]} 7. Nd2 {[%emt 0:04:23]} Bb7 {[%emt 0:00:07]} 8. e4 {[%emt 0:00:18]} g6 {[%emt 0:00:04]} 9. Bd3 {[%emt 0:01:31]} Bg7 {[%emt 0:00:07]} 10. Nf3 {[%emt 0:00:42]} d6 {[%emt 0:00:16]} 11. O-O {[%emt 0:05:00]} O-O {[%emt 0:00:07]} 12. Bg5 {[%emt 0:00:39]} Qd7 {[%emt 0:00:08]} 13. Qd2 {[%emt 0:00:46]} Nc6 {[%emt 0:07:35]} 14. Bc2 {[%emt 0:05:37]} Na5 {[%emt 0:01:35]} 15. b3 {[%emt 0:01:55]} f5 {[%emt 0:04:47]} 16. exf5 {[%emt 0:19:02]} Bxf3 {[%emt 0:00:38]} 17. gxf3 {[%emt 0:00:06]} exf5 {[%emt 0:00:50]} 18. Rae1 {[%emt 0:03:25]} Nc6 {[%emt 0:01:13]} 19. d5 {[%emt 0:02:24]} Ne5 {[%emt 0:00:11]} 20. Kg2 {[%emt 0:04:09]} f4 {[%emt 0:07:42]} 21. Bxf4 {[%emt 0:17:22]} Nxf3 {[%emt 0:00:29]} 22. Kxf3 {[%emt 0:00:09]} Qh3+ {[%emt 0:00:02]} 23. Ke2 {[%emt 0:00:11]} Rae8+ {[%emt 0:00:30]} 24. Be3 {[%emt 0:02:15]} Qf3+ {[%emt 0:00:07]} 25. Kd3 {[%emt 0:00:12]} Rf4 {[%emt 0:02:05]} 26. Qe2 {[%emt 0:06:25]} Rd4+ {[%emt 0:00:11]} 27. Kc3 {[%emt 0:00:10]} Qxe2 {[%emt 0:01:12]} 28. Rxe2 {[%emt 0:00:30]} Rd1+ {[%emt 0:00:06]} 29. Kb4 {[%emt 0:00:06]} Rxf1 {[%emt 0:00:08]} 30. Kb5 {[%emt 0:00:58]} Rh1 {[%emt 0:01:31]} 31. Kc6 {[%emt 0:00:25]} Re7 {[%emt 0:00:16]} 32. b4 {[%emt 0:01:18]} Rxh2 {[%emt 0:02:56]} 33. c5 {[%emt 0:00:36]} bxc5 {[%emt 0:01:51]} 34. bxc5 {[%emt 0:00:03]} dxc5 {[%emt 0:02:29]} 35. Bb3 {[%emt 0:00:13]} Kh8 {[%emt 0:01:23]} 36. Kxc5 {[%emt 0:02:15]} h5 {[%emt 0:01:11]} 37. Rc2 {[%emt 0:00:46]} Be5 {[%emt 0:02:07]} 38. Kc6 {[%emt 0:01:17]} Rh3 {[%emt 0:03:58]} 39. Bc4 {[%emt 0:04:58]} Rf3 {[%emt 0:02:56]} 40. Bc5 {[%emt 0:00:00]} Bd6 {[%emt 0:00:00]} 41. Bd4+ {[%emt 0:17:53]} Kh7 {[%emt 0:01:40]} 42. a4 {[%emt 0:00:09]} h4 {[%emt 0:01:18]} 43. Bxa7 {[%emt 0:06:13]} h3 {[%emt 0:00:16]} 44. a5 {[%emt 0:00:33]} h2 {[%emt 0:00:36]} 45. Rc1 {[%emt 0:00:10]} Rf6 {[%emt 0:03:39]} 46. Bd4 {[%emt 0:03:00]} Rf4 {[%emt 0:00:44]} 0-1

[Event "RUS-chT Premier 2019"]
[Site "Sochi"]
[Date "2019.05.02"]
[Round "2.5"]
[White "Timerkhanov, Alexander"]
[Black "Kezin, Roman"]
[Result "0-1"]
[ECO "B44"]
[WhiteElo "2366"]
[BlackElo "2468"]
[Annotator "RC"]
[PlyCount "128"]
[EventDate "2019.05.01"]
[EventType "team-tourn"]
[EventCountry "RUS"]
[SourceTitle "playchess.com"]
[Source "ChessBase"]
[SourceQuality "1"]
[TimeControl "40/5400+30:1800+30"]

1. e4 {[%emt 0:00:00]} c5 {[%emt 0:00:39]} 2. Nf3 {[%emt 0:00:00]} e6 {[%emt 0:00:22]} 3. d4 {[%emt 0:00:00]} cxd4 {[%emt 0:00:05]} 4. Nxd4 {[%emt 0:00:00]} Nc6 {[%emt 0:00:07]} 5. Nb5 {[%emt 0:00:32]} d6 {[%emt 0:00:24]} 6. c4 {[%emt 0:00:11]} a6 {[%emt 0:08:28]} 7. N5c3 {[%emt 0:00:07]} Nf6 {[%emt 0:00:03]} 8. Be2 {[%emt 0:00:44]} Be7 {[%emt 0:00:26]} 9. O-O {[%emt 0:00:30]} O-O {[%emt 0:00:07]} 10. Be3 {[%emt 0:01:19]} b6 {[%emt 0:12:00]} 11. Nd2 {[%emt 0:04:33]} Bb7 {[%emt 0:02:28]} 12. Qb3 {[%emt 0:13:38]} Nd7 {[%emt 0:00:31]} 13. Rfd1 {[%emt 0:03:13]} Nc5 {[%emt 0:11:24]} 14. Qc2 {[%emt 0:00:36]} Bf6 {[%emt 0:06:25]} 15. Nf3 {[%emt 0:07:05]} Qc7 {[%emt 0:03:24]} 16. a3 {[%emt 0:02:08]} Bxc3 {[%emt 0:11:08]} 17. bxc3 {[%emt 0:13:44]} Ne7 {[%emt 0:02:57]} 18. Bd3 {[%emt 0:02:45]} f5 {[%emt 0:26:38]} 19. Ng5 {[%emt 0:10:53]} Qc6 {[%emt 0:06:34]} 20. Bxc5 {[%emt 0:13:38]} dxc5 {[%emt 0:00:13]} 21. f3 {[%emt 0:01:39]} h6 {[%emt 0:00:36]} 22. Nh3 {[%emt 0:00:14]} Qc7 {[%emt 0:01:51]} 23. Rab1 {[%emt 0:01:20]} Rad8 {[%emt 0:00:09]} 24. Qe2 {[%emt 0:01:13]} Nc6 {[%emt 0:01:14]} 25. Bc2 {[%emt 0:04:25]} Rxd1+ {[%emt 0:00:05]} 26. Rxd1 {[%emt 0:00:04]} Qe5 {[%emt 0:00:30]} 27. Qe1 {[%emt 0:01:34]} f4 {[%emt 0:03:00]} 28. Nf2 {[%emt 0:00:25]} Qc7 {[%emt 0:01:23]} 29. Nd3 {[%emt 0:00:44]} e5 {[%emt 0:00:27]} 30. Ba4 {[%emt 0:02:38]} Na5 {[%emt 0:00:37]} 31. Nb2 {[%emt 0:01:47]} Rd8 {[%emt 0:00:11]} 32. Rd2 {[%emt 0:00:17]} Bc8 {[%emt 0:00:20]} 33. Qd1 {[%emt 0:00:36]} Rxd2 {[%emt 0:00:01]} 34. Qxd2 {[%emt 0:00:01]} Be6 {[%emt 0:00:01]} 35. Qd3 {[%emt 0:00:32]} Kf8 {[%emt 0:00:50]} 36. Kf2 {[%emt 0:00:46]} Ke7 {[%emt 0:00:05]} 37. Bd1 {[%emt 0:01:35]} g5 {[%emt 0:01:45]} 38. Be2 {[%emt 0:00:43]} Qd6 {[%emt 0:00:45]} 39. Qxd6+ {[%emt 0:05:32]} Kxd6 {[%emt 0:00:02]} 40. Ke1 {[%emt 0:00:00]} h5 {[%emt 0:00:00]} 41. h3 {[%emt 0:02:00]} Bd7 {[%emt 0:01:03]} 42. Kd2 {[%emt 0:00:59]} Ke7 {[%emt 0:00:28]} 43. Kd3 {[%emt 0:00:35]} Kf6 {[%emt 0:01:39]} 44. Bd1 {[%emt 0:00:55]} Be6 {[%emt 0:01:41]} 45. Ba4 {[%emt 0:03:46]} g4 {[%emt 0:00:20]} 46. hxg4 {[%emt 0:06:44]} hxg4 {[%emt 0:00:06]} 47. Bd1 {[%emt 0:00:08]} Kg5 {[%emt 0:05:55]} 48. fxg4 {[%emt 0:04:11]} Bxg4 {[%emt 0:00:06]} 49. Bxg4 {[%emt 0:10:57]} Kxg4 {[%emt 0:00:03]} 50. Ke2 {[%emt 0:00:12]} Kg3 {[%emt 0:00:06]} 51. Kf1 {[%emt 0:00:04]} f3 {[%emt 0:05:33]} 52. gxf3 {[%emt 0:00:05]} Kxf3 {[%emt 0:00:02]} 53. Ke1 {[%emt 0:00:13]} Kxe4 {[%emt 0:00:05]} 54. Ke2 {[%emt 0:00:03]} Kf4 {[%emt 0:00:11]} 55. Nd3+ {[%emt 0:00:41]} Kf5 {[%emt 0:00:09]} 56. Nb2 {[%emt 0:00:42]} e4 {[%emt 0:02:29]} 57. Ke3 {[%emt 0:05:08]} Ke5 {[%emt 0:00:04]} 58. Kf2 {[%emt 0:00:23]} Kf4 {[%emt 0:00:06]} 59. Ke2 {[%emt 0:00:03]} e3 {[%emt 0:01:34]} 60. Nd3+ {[%emt 0:00:05]} Ke4 {[%emt 0:00:04]} 61. Nb2 {[%emt 0:00:06]} Nb3 {[%emt 0:00:24]} 62. Nd3 {[%emt 0:00:49]} a5 {[%emt 0:07:05]} 63. a4 {[%emt 0:02:55]} Nd2 {[%emt 0:00:02]} 64. Ne1 {[%emt 0:00:22]} Nb1 {[%emt 0:00:22]} 0-1